[Event "Titled Tuesday Blitz October 25 Late 2022"]
[White "Sailer, Mike"]
[Black "Petrova, Irina"]
[WhiteFideId "2012901"]
[BlackFideId "14124122"]
[WhiteElo "2109"]
[BlackElo "2023"]
[Result "0-1"]
[Round "09"]
[TimeControl "180+1"]
[Date "2022.10.26"]
[WhiteClock "0:00:09"]
[BlackClock "0:00:10"]

1. d4 {[%clk 0:03:00]}  d6 {[%clk 0:03:00]} 2. Nc3 {[%clk 0:02:58]}  Nf6 {[%clk 0:02:58]} 3. e4 {[%clk 0:02:56]}  e5 {[%clk 0:02:57]} 4. dxe5 {[%clk 0:02:55]}  dxe5 {[%clk 0:02:58]} 5. Qxd8+ {[%clk 0:02:54]}  Kxd8 {[%clk 0:02:59]} 6. Bc4 {[%clk 0:02:47]}  Ke8 {[%clk 0:02:58]} 7. f3 {[%clk 0:02:35]}  c6 {[%clk 0:02:56]} 8. a4 {[%clk 0:02:29]}  Bb4 {[%clk 0:02:47]} 9. Ne2 {[%clk 0:02:27]}  Nbd7 {[%clk 0:02:46]} 10. Be3 {[%clk 0:02:26]}  Nc5 {[%clk 0:02:40]} 11. O-O {[%clk 0:02:19]}  Be6 {[%clk 0:02:38]} 12. Bxe6 {[%clk 0:02:15]}  Nxe6 {[%clk 0:02:39]} 13. Rfd1 {[%clk 0:02:09]}  Ke7 {[%clk 0:02:38]} 14. g4 {[%clk 0:02:03]}  h6 {[%clk 0:02:37]} 15. Kf2 {[%clk 0:02:02]}  Rhd8 {[%clk 0:02:36]} 16. Rxd8 {[%clk 0:01:50]}  Kxd8 {[%clk 0:02:29]} 17. Nd1 {[%clk 0:01:46]}  Bc5 {[%clk 0:02:20]} 18. c3 {[%clk 0:01:42]}  Ke7 {[%clk 0:02:17]} 19. a5 {[%clk 0:01:34]}  Rd8 {[%clk 0:02:12]} 20. b4 {[%clk 0:01:25]}  Bxe3+ {[%clk 0:02:11]} 21. Kxe3 {[%clk 0:01:25]}  Ne8 {[%clk 0:02:07]} 22. Nb2 {[%clk 0:01:20]}  N8c7 {[%clk 0:01:57]} 23. h4 {[%clk 0:01:03]}  g6 {[%clk 0:01:48]} 24. Nd3 {[%clk 0:00:52]}  Nb5 {[%clk 0:01:41]} 25. Nxe5 {[%clk 0:00:47]}  Nd6 {[%clk 0:01:38]} 26. c4 {[%clk 0:00:33]}  f6 {[%clk 0:01:21]} 27. Nxg6+ {[%clk 0:00:30]}  Kf7 {[%clk 0:01:21]} 28. h5 {[%clk 0:00:29]}  Nxc4+ {[%clk 0:01:20]} 29. Kf2 {[%clk 0:00:26]}  Rd2 {[%clk 0:01:16]} 30. Ke1 {[%clk 0:00:27]}  Rb2 {[%clk 0:01:06]} 31. Rd1 {[%clk 0:00:25]}  Ke8 {[%clk 0:01:00]} 32. Nd4 {[%clk 0:00:15]}  Nxd4 {[%clk 0:00:52]} 33. Rxd4 {[%clk 0:00:15]}  Rxb4 {[%clk 0:00:51]} 34. Kf2 {[%clk 0:00:15]}  Rb2+ {[%clk 0:00:49]} 35. Kg3 {[%clk 0:00:14]}  Nd2 {[%clk 0:00:45]} 36. Kf4 {[%clk 0:00:10]}  b5 {[%clk 0:00:37]} 37. Rd6 {[%clk 0:00:06]}  Rc2 {[%clk 0:00:33]} 38. Rxf6 {[%clk 0:00:05]}  b4 {[%clk 0:00:32]} 39. Rf8+ {[%clk 0:00:05]}  Kd7 {[%clk 0:00:29]} 40. Rb8 {[%clk 0:00:05]}  b3 {[%clk 0:00:27]} 41. Ne5+ {[%clk 0:00:04]}  Kc7 {[%clk 0:00:27]} 42. Rb4 {[%clk 0:00:03]}  b2 {[%clk 0:00:22]} 43. Nd3 {[%clk 0:00:01]}  b1=Q {[%clk 0:00:20]} 44. Rxb1 {[%clk 0:00:02]}  Nxb1 {[%clk 0:00:21]} 45. Ne5 {[%clk 0:00:01]}  Nd2 {[%clk 0:00:20]} 46. Kf5 {[%clk 0:00:02]}  Rc3 {[%clk 0:00:20]} 47. f4 {[%clk 0:00:02]}  Rc5 {[%clk 0:00:20]} 48. Kg6 {[%clk 0:00:03]}  Rxa5 {[%clk 0:00:18]} 49. Kxh6 {[%clk 0:00:03]}  Nxe4 {[%clk 0:00:18]} 50. g5 {[%clk 0:00:03]}  c5 {[%clk 0:00:17]} 51. g6 {[%clk 0:00:04]}  Nf6 {[%clk 0:00:16]} 52. Kg5 {[%clk 0:00:04]}  Ra6 {[%clk 0:00:16]} 53. h6 {[%clk 0:00:04]}  Ne4+ {[%clk 0:00:14]} 54. Kf5 {[%clk 0:00:04]}  Ng3+ {[%clk 0:00:14]} 55. Kg4 {[%clk 0:00:05]}  Ne4 {[%clk 0:00:10]} 56. h7 {[%clk 0:00:05]}  Nf6+ {[%clk 0:00:09]} 57. Kf5 {[%clk 0:00:05]}  Nxh7 {[%clk 0:00:09]} 58. gxh7 {[%clk 0:00:06]}  Rh6 {[%clk 0:00:10]} 59. Nf7 {[%clk 0:00:05]}  Rxh7 {[%clk 0:00:09]} 60. Ng5 {[%clk 0:00:05]}  Rh1 {[%clk 0:00:09]} 61. Ne6+ {[%clk 0:00:06]}  Kd6 {[%clk 0:00:08]} 62. Nd8 {[%clk 0:00:06]}  c4 {[%clk 0:00:08]} 63. Nb7+ {[%clk 0:00:06]}  Kd5 {[%clk 0:00:07]} 64. Na5 {[%clk 0:00:06]}  c3 {[%clk 0:00:07]} 65. Nb3 {[%clk 0:00:06]}  c2 {[%clk 0:00:06]} 66. Kf6 {[%clk 0:00:06]}  c1=Q {[%clk 0:00:07]} 67. Nxc1 {[%clk 0:00:06]}  Rxc1 {[%clk 0:00:07]} 68. f5 {[%clk 0:00:07]}  Rf1 {[%clk 0:00:08]} 69. Ke7 {[%clk 0:00:08]}  a5 {[%clk 0:00:09]} 70. f6 {[%clk 0:00:08]}  Rxf6 {[%clk 0:00:08]} 71. Kxf6 {[%clk 0:00:09]}  a4 {[%clk 0:00:09]} 72. Kf5 {[%clk 0:00:09]}  a3 {[%clk 0:00:10]} 0-1


[Site "https://www.chess.com"]

[Event "Titled Tuesday Blitz October 25 Late 2022"]
[White "Silva Rosas, Natalia"]
[Black "Joubert, Dantelle"]
[WhiteFideId "3000575"]
[BlackFideId "14310813"]
[WhiteElo "1752"]
[BlackElo "1507"]
[Result "0-1"]
[Round "09"]
[TimeControl "180+1"]
[Date "2022.10.26"]
[WhiteClock "0:00:12"]
[BlackClock "0:01:09"]

1. e4 {[%clk 0:03:00]}  e5 {[%clk 0:02:59]} 2. f4 {[%clk 0:02:57]}  exf4 {[%clk 0:02:56]} 3. Nf3 {[%clk 0:02:56]}  d5 {[%clk 0:02:56]} 4. exd5 {[%clk 0:02:46]}  Nf6 {[%clk 0:02:53]} 5. d4 {[%clk 0:02:36]}  Bd6 {[%clk 0:02:47]} 6. Bb5+ {[%clk 0:02:20]}  c6 {[%clk 0:02:44]} 7. dxc6 {[%clk 0:02:08]}  Nxc6 {[%clk 0:02:44]} 8. d5 {[%clk 0:01:54]}  Nxd5 {[%clk 0:02:37]} 9. Bxc6+ {[%clk 0:01:45]}  bxc6 {[%clk 0:02:36]} 10. O-O {[%clk 0:01:38]}  O-O {[%clk 0:02:35]} 11. c4 {[%clk 0:01:34]}  Bc5+ {[%clk 0:02:22]} 12. Kh1 {[%clk 0:01:27]}  Ne3 {[%clk 0:02:18]} 13. Bxe3 {[%clk 0:01:18]}  fxe3 {[%clk 0:02:10]} 14. Qe2 {[%clk 0:01:13]}  Bg4 {[%clk 0:02:00]} 15. Nc3 {[%clk 0:01:10]}  Qe7 {[%clk 0:01:52]} 16. a3 {[%clk 0:01:06]}  a5 {[%clk 0:01:50]} 17. h3 {[%clk 0:01:03]}  Bh5 {[%clk 0:01:45]} 18. Rae1 {[%clk 0:00:55]}  Rfe8 {[%clk 0:01:43]} 19. g4 {[%clk 0:00:46]}  Bg6 {[%clk 0:01:42]} 20. Rd1 {[%clk 0:00:31]}  Rad8 {[%clk 0:01:34]} 21. g5 {[%clk 0:00:29]}  Be4 {[%clk 0:01:28]} 22. Rxd8 {[%clk 0:00:24]}  Rxd8 {[%clk 0:01:28]} 23. Nxe4 {[%clk 0:00:20]}  Qxe4 {[%clk 0:01:27]} 24. Kg1 {[%clk 0:00:18]}  Rd2 {[%clk 0:01:15]} 25. Qe1 {[%clk 0:00:14]}  Rf2 {[%clk 0:01:10]} 26. Kh1 {[%clk 0:00:12]}  Qxf3+ {[%clk 0:01:09]} 0-1


[Site "https://www.chess.com"]

[Event "Titled Tuesday Blitz October 25 Late 2022"]
[White "Sokolovsky, Yahli"]
[Black "Mendez Fortes, Eduardo Jesus"]
[WhiteFideId "2820242"]
[BlackFideId "3502376"]
[WhiteElo "2316"]
[BlackElo "2307"]
[Result "0-1"]
[Round "09"]
[TimeControl "180+1"]
[Date "2022.10.26"]
[WhiteClock "0:00:03"]
[BlackClock "0:01:28"]

1. b3 {[%clk 0:03:00]}  d5 {[%clk 0:02:56]} 2. e3 {[%clk 0:03:00]}  Nf6 {[%clk 0:02:57]} 3. Bb2 {[%clk 0:02:59]}  e6 {[%clk 0:02:57]} 4. Nf3 {[%clk 0:02:59]}  Bd6 {[%clk 0:02:56]} 5. d4 {[%clk 0:02:59]}  O-O {[%clk 0:02:56]} 6. Bd3 {[%clk 0:03:00]}  c5 {[%clk 0:02:56]} 7. Nbd2 {[%clk 0:02:59]}  b6 {[%clk 0:02:56]} 8. O-O {[%clk 0:02:56]}  Bb7 {[%clk 0:02:56]} 9. a3 {[%clk 0:02:48]}  Nc6 {[%clk 0:02:56]} 10. Ne5 {[%clk 0:02:45]}  Rc8 {[%clk 0:02:37]} 11. f4 {[%clk 0:02:44]}  Na5 {[%clk 0:02:26]} 12. dxc5 {[%clk 0:02:11]}  bxc5 {[%clk 0:02:24]} 13. Ng4 {[%clk 0:02:11]}  Be7 {[%clk 0:02:18]} 14. b4 {[%clk 0:01:31]}  c4 {[%clk 0:02:00]} 15. bxa5 {[%clk 0:01:29]}  cxd3 {[%clk 0:01:57]} 16. cxd3 {[%clk 0:01:30]}  Ba6 {[%clk 0:01:56]} 17. Nb3 {[%clk 0:01:23]}  Nxg4 {[%clk 0:01:49]} 18. Qxg4 {[%clk 0:01:22]}  Bf6 {[%clk 0:01:49]} 19. Bxf6 {[%clk 0:00:33]}  Qxf6 {[%clk 0:01:48]} 20. Qe2 {[%clk 0:00:34]}  Qc3 {[%clk 0:01:38]} 21. Qd1 {[%clk 0:00:11]}  Bxd3 {[%clk 0:01:32]} 22. Rc1 {[%clk 0:00:09]}  Bc2 {[%clk 0:01:32]} 23. Nd4 {[%clk 0:00:03]}  Qxe3+ {[%clk 0:01:28]} 0-1


[Site "https://www.chess.com"]

[Event "Titled Tuesday Blitz October 25 Late 2022"]
[White "Sorokin, Aleksey"]
[Black "Caruana, Fabiano"]
[WhiteFideId "24176460"]
[BlackFideId "2020009"]
[WhiteElo "2476"]
[BlackElo "2847"]
[Result "0-1"]
[Round "09"]
[TimeControl "180+1"]
[Date "2022.10.26"]
[WhiteClock "0:00:02"]
[BlackClock "0:00:03"]

1. c4 {[%clk 0:03:00]}  e5 {[%clk 0:02:59]} 2. Nc3 {[%clk 0:03:00]}  Bb4 {[%clk 0:02:59]} 3. g3 {[%clk 0:02:55]}  Bxc3 {[%clk 0:02:58]} 4. bxc3 {[%clk 0:02:54]}  d6 {[%clk 0:02:58]} 5. Bg2 {[%clk 0:02:54]}  Nc6 {[%clk 0:02:59]} 6. Nh3 {[%clk 0:02:51]}  Nge7 {[%clk 0:02:58]} 7. O-O {[%clk 0:02:49]}  O-O {[%clk 0:02:59]} 8. d3 {[%clk 0:02:49]}  h6 {[%clk 0:02:58]} 9. f4 {[%clk 0:02:48]}  Be6 {[%clk 0:02:56]} 10. e4 {[%clk 0:02:46]}  f5 {[%clk 0:02:56]} 11. fxe5 {[%clk 0:02:39]}  dxe5 {[%clk 0:02:54]} 12. exf5 {[%clk 0:02:39]}  Bxf5 {[%clk 0:02:51]} 13. Nf2 {[%clk 0:02:39]}  Qd7 {[%clk 0:02:50]} 14. Rb1 {[%clk 0:02:30]}  b6 {[%clk 0:02:50]} 15. Qe2 {[%clk 0:02:22]}  Rad8 {[%clk 0:02:49]} 16. Ba3 {[%clk 0:02:18]}  Rf7 {[%clk 0:02:45]} 17. Rbd1 {[%clk 0:02:14]}  Kh8 {[%clk 0:02:36]} 18. h3 {[%clk 0:01:40]}  Be6 {[%clk 0:02:32]} 19. Kh2 {[%clk 0:01:36]}  Nf5 {[%clk 0:02:23]} 20. Ng4 {[%clk 0:01:30]}  Re8 {[%clk 0:01:44]} 21. Rde1 {[%clk 0:01:01]}  Nfe7 {[%clk 0:01:19]} 22. Rxf7 {[%clk 0:00:57]}  Bxf7 {[%clk 0:01:20]} 23. Bxe7 {[%clk 0:00:51]}  Rxe7 {[%clk 0:01:20]} 24. Bxc6 {[%clk 0:00:50]}  Qxc6 {[%clk 0:01:20]} 25. Nxe5 {[%clk 0:00:50]}  Qf6 {[%clk 0:01:17]} 26. d4 {[%clk 0:00:37]}  Bxc4 {[%clk 0:00:59]} 27. Qg2 {[%clk 0:00:15]}  Re8 {[%clk 0:00:58]} 28. Re4 {[%clk 0:00:07]}  Bg8 {[%clk 0:00:30]} 29. a3 {[%clk 0:00:05]}  Qd6 {[%clk 0:00:22]} 30. Rf4 {[%clk 0:00:04]}  Bd5 {[%clk 0:00:12]} 31. Qf2 {[%clk 0:00:03]}  Kg8 {[%clk 0:00:13]} 32. a4 {[%clk 0:00:02]}  c5 {[%clk 0:00:12]} 33. h4 {[%clk 0:00:02]}  cxd4 {[%clk 0:00:12]} 34. cxd4 {[%clk 0:00:03]}  Rc8 {[%clk 0:00:13]} 35. h5 {[%clk 0:00:03]}  Bb3 {[%clk 0:00:05]} 36. Ng6 {[%clk 0:00:02]}  Bc2 {[%clk 0:00:03]} 0-1


[Site "https://www.chess.com"]

[Event "Titled Tuesday Blitz October 25 Late 2022"]
[White "Stoyanov, Tsvetan"]
[Black "Hansen, Eric"]
[WhiteFideId "2917173"]
[BlackFideId "2606771"]
[WhiteElo "2349"]
[BlackElo "2568"]
[Result "0-1"]
[Round "09"]
[TimeControl "180+1"]
[Date "2022.10.26"]
[WhiteClock "0:00:01"]
[BlackClock "0:00:06"]

1. e4 {[%clk 0:03:00]}  c5 {[%clk 0:02:36]} 2. Nf3 {[%clk 0:03:01]}  e6 {[%clk 0:02:36]} 3. d4 {[%clk 0:03:01]}  cxd4 {[%clk 0:02:37]} 4. Nxd4 {[%clk 0:03:02]}  a6 {[%clk 0:02:37]} 5. Nc3 {[%clk 0:03:01]}  Qc7 {[%clk 0:02:37]} 6. Bd3 {[%clk 0:02:59]}  Nf6 {[%clk 0:02:34]} 7. O-O {[%clk 0:02:58]}  d6 {[%clk 0:02:33]} 8. Qe2 {[%clk 0:02:56]}  Nbd7 {[%clk 0:02:33]} 9. Kh1 {[%clk 0:02:52]}  b5 {[%clk 0:02:31]} 10. a4 {[%clk 0:02:11]}  b4 {[%clk 0:02:31]} 11. Nd5 {[%clk 0:02:11]}  Qb7 {[%clk 0:02:00]} 12. Nxf6+ {[%clk 0:01:57]}  Nxf6 {[%clk 0:01:59]} 13. f4 {[%clk 0:01:57]}  Nd7 {[%clk 0:01:48]} 14. e5 {[%clk 0:01:28]}  Nc5 {[%clk 0:01:47]} 15. f5 {[%clk 0:01:08]}  Nxd3 {[%clk 0:01:47]} 16. cxd3 {[%clk 0:01:07]}  dxe5 {[%clk 0:01:38]} 17. fxe6 {[%clk 0:01:04]}  f6 {[%clk 0:01:34]} 18. Nf3 {[%clk 0:00:31]}  Bxe6 {[%clk 0:01:18]} 19. Nxe5 {[%clk 0:00:13]}  fxe5 {[%clk 0:01:14]} 20. Qxe5 {[%clk 0:00:13]}  Qd5 {[%clk 0:01:11]} 21. Qg3 {[%clk 0:00:07]}  Bd6 {[%clk 0:00:54]} 22. Qh4 {[%clk 0:00:06]}  Rc8 {[%clk 0:00:40]} 23. Be3 {[%clk 0:00:04]}  Rc2 {[%clk 0:00:39]} 24. Bf2 {[%clk 0:00:03]}  O-O {[%clk 0:00:37]} 25. Rae1 {[%clk 0:00:03]}  Bf5 {[%clk 0:00:32]} 26. Qg5 {[%clk 0:00:02]}  h6 {[%clk 0:00:31]} 27. Qe3 {[%clk 0:00:02]}  Qxd3 {[%clk 0:00:28]} 28. Qb6 {[%clk 0:00:01]}  Bh3 {[%clk 0:00:15]} 29. gxh3 {[%clk 0:00:01]}  Qd5+ {[%clk 0:00:05]} 30. Kg1 {[%clk 0:00:01]}  Rcxf2 {[%clk 0:00:05]} 31. Rxf2 {[%clk 0:00:01]}  Bc5 {[%clk 0:00:06]} 0-1


[Site "https://www.chess.com"]

[Event "Titled Tuesday Blitz October 25 Late 2022"]
[White "Sztokbant, Bernardo Vainzoff"]
[Black "Stanisz, Patryk"]
[WhiteFideId "2115956"]
[BlackFideId "1123106"]
[WhiteElo "2171"]
[BlackElo "2069"]
[Result "1-0"]
[Round "09"]
[TimeControl "180+1"]
[Date "2022.10.26"]
[WhiteClock "0:00:12"]
[BlackClock "0:00:01"]

1. c4 {[%clk 0:03:00]}  c6 {[%clk 0:02:58]} 2. e4 {[%clk 0:02:58]}  d5 {[%clk 0:02:58]} 3. exd5 {[%clk 0:02:59]}  cxd5 {[%clk 0:02:59]} 4. d4 {[%clk 0:03:00]}  Nf6 {[%clk 0:02:59]} 5. Nf3 {[%clk 0:02:58]}  Nc6 {[%clk 0:02:59]} 6. Nc3 {[%clk 0:02:58]}  e6 {[%clk 0:02:59]} 7. Bg5 {[%clk 0:02:55]}  Be7 {[%clk 0:02:45]} 8. c5 {[%clk 0:02:55]}  h6 {[%clk 0:02:44]} 9. Bf4 {[%clk 0:02:55]}  Ne4 {[%clk 0:02:43]} 10. Bd3 {[%clk 0:02:50]}  Nxc3 {[%clk 0:02:37]} 11. bxc3 {[%clk 0:02:51]}  O-O {[%clk 0:02:37]} 12. O-O {[%clk 0:02:50]}  Re8 {[%clk 0:02:34]} 13. Bc2 {[%clk 0:02:50]}  Bg5 {[%clk 0:01:55]} 14. Bg3 {[%clk 0:02:32]}  b6 {[%clk 0:01:46]} 15. Qd3 {[%clk 0:02:20]}  g6 {[%clk 0:01:45]} 16. cxb6 {[%clk 0:02:14]}  axb6 {[%clk 0:01:44]} 17. Nxg5 {[%clk 0:02:07]}  Qxg5 {[%clk 0:01:39]} 18. Rfe1 {[%clk 0:02:01]}  Ba6 {[%clk 0:01:29]} 19. Qf3 {[%clk 0:02:01]}  h5 {[%clk 0:00:57]} 20. h4 {[%clk 0:01:57]}  Qg4 {[%clk 0:00:56]} 21. Qe3 {[%clk 0:01:49]}  Ne7 {[%clk 0:00:33]} 22. Qh6 {[%clk 0:01:25]}  Nf5 {[%clk 0:00:25]} 23. Bxf5 {[%clk 0:01:25]}  Qxf5 {[%clk 0:00:26]} 24. Re5 {[%clk 0:01:24]}  Qf6 {[%clk 0:00:17]} 25. Rxh5 {[%clk 0:01:23]}  Qg7 {[%clk 0:00:17]} 26. Qxg7+ {[%clk 0:00:46]}  Kxg7 {[%clk 0:00:18]} 27. Rg5 {[%clk 0:00:47]}  Rec8 {[%clk 0:00:17]} 28. Rc1 {[%clk 0:00:41]}  Bc4 {[%clk 0:00:17]} 29. h5 {[%clk 0:00:39]}  Kf6 {[%clk 0:00:16]} 30. Bh4 {[%clk 0:00:36]}  gxh5 {[%clk 0:00:14]} 31. Rxd5+ {[%clk 0:00:33]}  Kg6 {[%clk 0:00:13]} 32. Rg5+ {[%clk 0:00:32]}  Kh6 {[%clk 0:00:12]} 33. Rg3 {[%clk 0:00:26]}  Rxa2 {[%clk 0:00:11]} 34. Re1 {[%clk 0:00:21]}  Bd5 {[%clk 0:00:06]} 35. Bf6 {[%clk 0:00:18]}  Rca8 {[%clk 0:00:02]} 36. Re5 {[%clk 0:00:15]}  Ra1+ {[%clk 0:00:02]} 37. Kh2 {[%clk 0:00:15]}  R1a2 {[%clk 0:00:01]} 38. Bg7+ {[%clk 0:00:10]}  Kh7 {[%clk 0:00:01]} 39. Rxh5+ {[%clk 0:00:11]}  Kg8 {[%clk 0:00:01]} 40. Rh8# {[%clk 0:00:12]} 1-0


[Site "https://www.chess.com"]

[Event "Titled Tuesday Blitz October 25 Late 2022"]
[White "Wiegmann, Sascha"]
[Black "Mikhalsky, Vladimir"]
[WhiteFideId "4682041"]
[BlackFideId "14144352"]
[WhiteElo "2292"]
[BlackElo "2271"]
[Result "1-0"]
[Round "09"]
[TimeControl "180+1"]
[Date "2022.10.26"]
[WhiteClock "0:00:10"]
[BlackClock "0:00:18"]

1. Nf3 {[%clk 0:03:00]}  c5 {[%clk 0:02:54]} 2. g3 {[%clk 0:03:01]}  Nc6 {[%clk 0:02:51]} 3. Bg2 {[%clk 0:03:01]}  e5 {[%clk 0:02:51]} 4. e4 {[%clk 0:03:00]}  g6 {[%clk 0:02:49]} 5. O-O {[%clk 0:03:00]}  Bg7 {[%clk 0:02:49]} 6. c3 {[%clk 0:03:00]}  Nge7 {[%clk 0:02:49]} 7. Na3 {[%clk 0:02:59]}  O-O {[%clk 0:02:46]} 8. d4 {[%clk 0:02:59]}  cxd4 {[%clk 0:02:46]} 9. cxd4 {[%clk 0:03:00]}  exd4 {[%clk 0:02:46]} 10. Nb5 {[%clk 0:03:00]}  Qb6 {[%clk 0:02:39]} 11. Nd6 {[%clk 0:02:48]}  Na5 {[%clk 0:02:36]} 12. e5 {[%clk 0:02:40]}  Nec6 {[%clk 0:02:18]} 13. Bf4 {[%clk 0:02:23]}  Qxb2 {[%clk 0:02:16]} 14. Rb1 {[%clk 0:02:07]}  Qxa2 {[%clk 0:02:15]} 15. Nxd4 {[%clk 0:02:08]}  Bxe5 {[%clk 0:02:05]} 16. Nxc6 {[%clk 0:01:58]}  Nxc6 {[%clk 0:02:02]} 17. Bxc6 {[%clk 0:00:59]}  Bxf4 {[%clk 0:02:00]} 18. Nxc8 {[%clk 0:00:59]}  bxc6 {[%clk 0:01:24]} 19. Ne7+ {[%clk 0:00:59]}  Kg7 {[%clk 0:01:23]} 20. gxf4 {[%clk 0:01:00]}  Qe6 {[%clk 0:01:18]} 21. Re1 {[%clk 0:00:59]}  Qf6 {[%clk 0:01:17]} 22. Qxd7 {[%clk 0:00:54]}  Qxf4 {[%clk 0:01:17]} 23. Nxc6 {[%clk 0:00:44]}  Qg5+ {[%clk 0:01:17]} 24. Kh1 {[%clk 0:00:41]}  a5 {[%clk 0:01:16]} 25. Qd4+ {[%clk 0:00:32]}  Qf6 {[%clk 0:01:08]} 26. Qxf6+ {[%clk 0:00:30]}  Kxf6 {[%clk 0:01:08]} 27. Ra1 {[%clk 0:00:30]}  a4 {[%clk 0:01:07]} 28. Ra3 {[%clk 0:00:29]}  Rfc8 {[%clk 0:01:07]} 29. Nd4 {[%clk 0:00:22]}  Rc4 {[%clk 0:01:06]} 30. Nb5 {[%clk 0:00:21]}  Rf4 {[%clk 0:00:59]} 31. Kg2 {[%clk 0:00:21]}  Ra5 {[%clk 0:00:58]} 32. Nc3 {[%clk 0:00:19]}  Rg5+ {[%clk 0:00:56]} 33. Kf1 {[%clk 0:00:20]}  Rgf5 {[%clk 0:00:53]} 34. Re2 {[%clk 0:00:20]}  Rh4 {[%clk 0:00:51]} 35. Rxa4 {[%clk 0:00:19]}  Rxh2 {[%clk 0:00:52]} 36. Ne4+ {[%clk 0:00:17]}  Kg7 {[%clk 0:00:51]} 37. Ng3 {[%clk 0:00:18]}  Rb5 {[%clk 0:00:50]} 38. Kg1 {[%clk 0:00:17]}  Rh6 {[%clk 0:00:44]} 39. Rf4 {[%clk 0:00:17]}  Rg5 {[%clk 0:00:39]} 40. Kg2 {[%clk 0:00:17]}  Rc5 {[%clk 0:00:37]} 41. Re7 {[%clk 0:00:17]}  g5 {[%clk 0:00:31]} 42. Rfxf7+ {[%clk 0:00:17]}  Kg6 {[%clk 0:00:30]} 43. Ra7 {[%clk 0:00:13]}  Re5 {[%clk 0:00:28]} 44. Rfb7 {[%clk 0:00:12]}  g4 {[%clk 0:00:26]} 45. Rb6+ {[%clk 0:00:11]}  Kg5 {[%clk 0:00:27]} 46. Rg7+ {[%clk 0:00:11]}  Rg6 {[%clk 0:00:24]} 47. Rbxg6+ {[%clk 0:00:11]}  hxg6 {[%clk 0:00:24]} 48. Ra7 {[%clk 0:00:11]}  Rc5 {[%clk 0:00:24]} 49. Ra4 {[%clk 0:00:12]}  Kh6 {[%clk 0:00:23]} 50. Rxg4 {[%clk 0:00:11]}  Rc6 {[%clk 0:00:23]} 51. Ne4 {[%clk 0:00:11]}  Ra6 {[%clk 0:00:23]} 52. Kf3 {[%clk 0:00:11]}  Ra3+ {[%clk 0:00:23]} 53. Kg2 {[%clk 0:00:11]}  Ra2 {[%clk 0:00:23]} 54. Ng3 {[%clk 0:00:11]}  Ra3 {[%clk 0:00:22]} 55. Re4 {[%clk 0:00:11]}  Ra2 {[%clk 0:00:22]} 56. Re2 {[%clk 0:00:11]}  Ra3 {[%clk 0:00:22]} 57. Re3 {[%clk 0:00:11]}  Ra4 {[%clk 0:00:22]} 58. Kf3 {[%clk 0:00:11]}  Kg5 {[%clk 0:00:22]} 59. Re5+ {[%clk 0:00:11]}  Kf6 {[%clk 0:00:21]} 60. Re3 {[%clk 0:00:11]}  Ra1 {[%clk 0:00:21]} 61. Ne2 {[%clk 0:00:12]}  Ra4 {[%clk 0:00:20]} 62. Nf4 {[%clk 0:00:12]}  g5 {[%clk 0:00:20]} 63. Ne2 {[%clk 0:00:10]}  Kf5 {[%clk 0:00:19]} 64. Ng3+ {[%clk 0:00:10]}  Kg6 {[%clk 0:00:20]} 65. Rb3 {[%clk 0:00:10]}  g4+ {[%clk 0:00:18]} 66. Kg2 {[%clk 0:00:10]}  Kg5 {[%clk 0:00:18]} 67. Rb5+ {[%clk 0:00:11]}  Kf4 {[%clk 0:00:18]} 68. Rf5# {[%clk 0:00:10]} 1-0


[Site "https://www.chess.com"]

[Event "Titled Tuesday Blitz October 25 Late 2022"]
[White "Yanayt, Eugene"]
[Black "Schuster, Karsten"]
[WhiteFideId "2020165"]
[BlackFideId "4611071"]
[WhiteElo "2046"]
[BlackElo "2294"]
[Result "1-0"]
[Round "09"]
[TimeControl "180+1"]
[Date "2022.10.26"]
[WhiteClock "0:00:28"]
[BlackClock "0:01:24"]

1. d4 {[%clk 0:03:00]}  d5 {[%clk 0:02:59]} 2. c4 {[%clk 0:03:00]}  c6 {[%clk 0:02:59]} 3. Nf3 {[%clk 0:02:59]}  Nf6 {[%clk 0:03:00]} 4. Qb3 {[%clk 0:02:56]}  dxc4 {[%clk 0:02:59]} 5. Qxc4 {[%clk 0:02:56]}  Bf5 {[%clk 0:03:00]} 6. g3 {[%clk 0:02:52]}  e6 {[%clk 0:03:00]} 7. Bg2 {[%clk 0:02:52]}  Be7 {[%clk 0:03:00]} 8. O-O {[%clk 0:02:52]}  O-O {[%clk 0:03:01]} 9. Rd1 {[%clk 0:02:50]}  Nbd7 {[%clk 0:03:01]} 10. e3 {[%clk 0:02:46]}  Ne4 {[%clk 0:03:00]} 11. Ne1 {[%clk 0:02:42]}  Rc8 {[%clk 0:02:54]} 12. f3 {[%clk 0:02:41]}  Nd6 {[%clk 0:02:53]} 13. Qe2 {[%clk 0:02:40]}  Bg6 {[%clk 0:02:43]} 14. e4 {[%clk 0:02:31]}  Qc7 {[%clk 0:02:36]} 15. Nc3 {[%clk 0:02:27]}  e5 {[%clk 0:02:34]} 16. d5 {[%clk 0:02:27]}  f5 {[%clk 0:02:26]} 17. Bh3 {[%clk 0:02:15]}  fxe4 {[%clk 0:02:24]} 18. fxe4 {[%clk 0:02:14]}  Rcd8 {[%clk 0:02:19]} 19. Nd3 {[%clk 0:01:58]}  Kh8 {[%clk 0:02:09]} 20. Bxd7 {[%clk 0:01:53]}  Qxd7 {[%clk 0:02:04]} 21. Nxe5 {[%clk 0:01:53]}  Qh3 {[%clk 0:02:02]} 22. Nxg6+ {[%clk 0:01:50]}  hxg6 {[%clk 0:02:03]} 23. Bf4 {[%clk 0:01:48]}  Nf7 {[%clk 0:01:54]} 24. e5 {[%clk 0:01:39]}  Bc5+ {[%clk 0:01:54]} 25. Kh1 {[%clk 0:01:38]}  cxd5 {[%clk 0:01:53]} 26. e6 {[%clk 0:01:25]}  Nh6 {[%clk 0:01:53]} 27. e7 {[%clk 0:01:21]}  Bxe7 {[%clk 0:01:53]} 28. Qxe7 {[%clk 0:01:19]}  Ng4 {[%clk 0:01:52]} 29. Rd2 {[%clk 0:01:16]}  d4 {[%clk 0:01:44]} 30. Nb5 {[%clk 0:00:36]}  Rde8 {[%clk 0:01:43]} 31. Qg5 {[%clk 0:00:32]}  Rf5 {[%clk 0:01:33]} 32. Qxg6 {[%clk 0:00:31]}  Ref8 {[%clk 0:01:31]} 33. Nxd4 {[%clk 0:00:29]}  Rh5 {[%clk 0:01:27]} 34. Nf3 {[%clk 0:00:28]}  Rxf4 {[%clk 0:01:24]} 35. Rd8+ {[%clk 0:00:28]} 1-0


[Site "https://www.chess.com"]